Cogmind - Beta 11 X7 @@@ ROGUE MODE // 2021.10.03 @ 19:59:24 Player: weirdfoe Result: Destroyed by as-82202 with Assembled Blade Performance ------------- Evolutions (0) 0 Regions Visited (2) 400 Robots Destroyed (11) 55 Value Destroyed (161) 161 Prototype IDs (0) 0 Alien Tech Used (0) 0 Bonus (0) 0 TOTAL SCORE: 616 Bonus ------- None Cogmind --------- Core Integrity 0/250 Matter 300/300 Energy 250/250 System Corruption 0% Temperature Cool (0) Movement Treading (260) Ox1 Location -10/Mines Parts ------- > --- POWER (1) -------- Ion Engine > --- PROPULSION (2) --- Light Treads > --- UTILITY (2) ------ Large Storage Unit > --- WEAPON (2) ------- Medium Laser > --- INVENTORY (15) --- Ion Engine Ion Engine Aluminum Leg Aluminum Leg Aluminum Leg Wheel Compact Wheel Huge Storage Unit Sensor Array Power Shielding Light Armor Plating Small Laser Rocket Launcher Peak State ------------ > --- POWER ------------ Ion Engine > --- PROPULSION ------- Light Treads Light Treads > --- UTILITY ---------- Large Storage Unit Power Shielding > --- WEAPON ----------- Medium Laser Medium Laser > --- INVENTORY -------- Ion Engine Ion Engine Light Ion Engine Aluminum Leg Aluminum Leg Wheel Compact Wheel Huge Storage Unit Sensor Array Small Laser [Rating: 8] Favorites ----------- Power Ion Engine Engine Ion Engine Propulsion Light Treads Treads Light Treads Leg Aluminum Leg Utility Large Storage Unit Device Heat Sink Storage Large Storage Unit Protection Power Shielding Weapon Medium Laser Energy Gun Medium Laser Build | -11 -10 -10 ------- Run | Scr Mat Min Slots Evolved . | . . . Power . | . . . Propulsion . | . . . Utility . | . . . Weapon . | . . . Parts Attached 17 | 6 10 1 Power 1 | 1 . . Engine 1 | 1 . . Core . | . . . Reactor . | . . . Propulsion 5 | 2 2 1 Treads 3 | . 2 1 Leg 2 | 2 . . Wheel . | . . . Hover . | . . . Flight . | . . . Utility 9 | 1 8 . Device 2 | . 2 . Storage 6 | 1 5 . Processor . | . . . Hackware . | . . . Protection 1 | . 1 . Artifact . | . . . Weapon 2 | 2 . . Energy Gun 2 | 2 . . Energy Cannon . | . . . Ballistic Gun . | . . . Ballistic Cannon . | . . . Launcher . | . . . Special Weapon . | . . . Impact Weapon . | . . . Slashing Weapon . | . . . Piercing Weapon . | . . . Special Melee Weapon . | . . . Unidentified Prototypes . | . . . Parts Lost 4 | . . 4 Power . | . . . Propulsion 2 | . . 2 Utility 1 | . . 1 Weapon 1 | . . 1 Highest Loss Streak 4 | . . 4 Average Slot Usage (%) 97 | . 97 98 Engine 14 | . 14 14 Treads 19 | . 16 27 Leg 8 | . 12 . Device 11 | . 9 14 Storage 14 | . 14 14 Protection 1 | . 1 . Energy Gun 27 | . 28 27 Naked Turns . | . . . Heaviest Build 30 | 14 30 30 Greatest Support 40 | 20 40 40 Greatest Overweight (x) 4 | 4 1 1 Average Overweight (x) . | . . . Largest Inventory Capacity 25 | 8 25 15 Average Capacity 13 | 7 14 15 Most Carried 14 | 6 12 14 Average Carried 9 | 2 8 12 Final Capacity 15 | 8 15 15 Final Carried 13 | 6 12 13 Class Distribution -------------------- 100% | Mutant Dominant Class ---------------- Mutant | -10/Materials Mutant | -10/Mines Resources | -11 -10 -10 ----------- Run | Scr Mat Min Matter Collected 366 | 169 187 10 Remotely . | . . . Salvage Created 409 | . 409 . Parts 17 | . 17 . Haulers Intercepted 1 | . 1 . Recyclers Shooed 4 | . 3 1 Parts Field Recycled . | . . . Retrieved Matter . | . . . Parts Self-Destructed . | . . . Prevented . | . . . Kills | -11 -10 -10 ------- Run | Scr Mat Min Combat Hostiles Destroyed 7 | . 7 . Guns 7 | . 7 . Classes Destroyed 5 | . 5 . Builder 1 | . 1 . Hauler 1 | . 1 . Recycler 2 | . 2 . Swarmer 4 | . 4 . Grunt 3 | . 3 . Best Kill Streak 3 | . 3 . Combat Bots Only 2 | . 2 . Max Kills in Single Turn 1 | . 1 . Gunslinging . | . . . Exploded . | . . . Melee . | . . . Uniques/NPCs Destroyed . | . . . Combat | -11 -10 -10 -------- Run | Scr Mat Min Damage Taken 961 | . 347 614 Core 272 | . 76 196 Absorbed by Shields . | . . . Core Remaining (%) 100 | 100 . . Volleys Fired 42 | . 35 7 Largest 2 | . 2 2 Hottest 100 | . 100 100 Shots Fired 83 | . 70 13 Gun 83 | . 70 13 Cannon . | . . . Launcher . | . . . Special . | . . . Kinetic . | . . . Thermal 83 | . 70 13 Explosive . | . . . Electromagnetic . | . . . Robot Hit Streak 16 | . 11 16 Robot Miss Streak 3 | . 3 2 Penetration Max . | . . . Secondary Targets . | . . . Shots Hit Robots 48 | . 40 8 Core Hits 22 | . 17 5 Critical Kills . | . . . Critical Parts Destroyed . | . . . Critical Strikes 7 | . 6 1 Burn 7 | . 6 1 Melee Attacks . | . . . Impact . | . . . Slashing . | . . . Piercing . | . . . Sneak Attacks . | . . . Combat Hostiles . | . . . Follow-up Attacks . | . . . Damage Inflicted 612 | . 502 110 Guns 600 | . 499 101 Cannons . | . . . Explosions . | . . . Melee . | . . . Ramming 12 | . 3 9 Kinetic . | . . . Thermal 600 | . 499 101 Explosive . | . . . Electromagnetic . | . . . Impact . | . . . Slashing . | . . . Piercing . | . . . Highest Corruption . | . . . Average Corruption . | . . . Corruption Purged . | . . . Overload Shots . | . . . Overflow Damage . | . . . Projectiles . | . . . Explosions . | . . . Melee . | . . . Knockbacks . | . . . Impact . | . . . Kinetic . | . . . Secondary . | . . . Self-Inflicted Damage . | . . . Shots . | . . . Rammed 4 | . . 4 Targets Rammed 5 | . 1 4 Kicked 1 | . 1 . Crushed . | . . . Highest Temperature 220 | . 220 29 Average Temperature 66 | . 73 11 Received Heat Transfer 160 | . 60 100 Siege Activations . | . . . Robots Corrupted . | . . . Combat Hostiles . | . . . Parts Fried . | . . . Impact Corruptions . | . . . Robots Melted . | . . . Combat Hostiles . | . . . Parts Melted 5 | . 5 . Heat Transferred 2294 | . 1924 370 Parts Sabotaged . | . . . Parts Stolen . | . . . Parts Stripped . | . . . Power Chain Reactions . | . . . Missiles Intercepted . | . . . Alert | -11 -10 -10 ------- Run | Scr Mat Min Peak Influence 120 | . 120 46 Initial 46 | . . 46 Average 47 | . 55 44 Maximum Alert Level . | . . . Low Security (%) 100 | 100 100 100 Level 1 . | . . . Level 2 . | . . . Level 3 . | . . . Level 4 . | . . . Level 5 . | . . . High Security . | . . . Max Security . | . . . Squads Dispatched 2 | . 2 . Investigation 1 | . 1 . Extermination . | . . . Reinforcement 1 | . 1 . Assault . | . . . Garrison . | . . . Intercept . | . . . Construction Impeded . | . . . Haulers Reinforced . | . . . Active Scanning Responses . | . . . Cargo Convoy Interrupts . | . . . Stealth | -11 -10 -10 --------- Run | Scr Mat Min Distress Signals 1 | . 1 . Communications Jammed . | . . . Distress Signals . | . . . Times Spotted 32 | . 17 15 Peak Tracking Total 14 | . 5 14 Tactical Retreats 1 | . . 1 Traps | -11 -10 -10 ------- Run | Scr Mat Min Traps Triggered . | . . . Indirectly . | . . . Trap Hack Attempts . | . . . Triggered . | . . . Disarmed . | . . . Reprogrammed . | . . . Reused . | . . . Traps Extracted . | . . . Installed . | . . . Triggered . | . . . Machines | -11 -10 -10 ---------- Run | Scr Mat Min Machines Disabled . | . . . Max in Single Turn . | . . . Machines Sabotaged . | . . . Garrisons Compromised . | . . . Overloaded Fab Kills . | . . . Fab Network Shutdowns . | . . . Hacking | -11 -10 -10 --------- Run | Scr Mat Min Machines Accessed 2 | . 2 . Terminals 2 | . 2 . Fabricators . | . . . Repair Stations . | . . . Recycling Units . | . . . Scanalyzers . | . . . Garrison Access . | . . . Total Hacks 6 | . 6 . Successful 2 | . 2 . Failed 4 | . 4 . Catastrophic 1 | . 1 . Database Lockouts . | . . . Manual 6 | . 6 . Terminals 6 | . 6 . Fabricators . | . . . Repair Stations . | . . . Recycling Units . | . . . Scanalyzers . | . . . Garrison Access . | . . . Terminal Hacks 2 | . 2 . Branch Access Points 1 | . 1 . Zone Layout 1 | . 1 . Fabricator Hacks . | . . . Repair Station Hacks . | . . . Recycling Unit Hacks . | . . . Scanalyzer . | . . . Garrison Access Hacks . | . . . Unauthorized Hacks . | . . . Terminals . | . . . Fabricators . | . . . Repair Stations . | . . . Recycling Units . | . . . Scanalyzers . | . . . Garrison Access . | . . . Data Cores Recovered . | . . . Used . | . . . Hacking Detections 2 | . 2 . Full Trace Events 1 | . 1 . Feedback Events . | . . . Feedback Blocked . | . . . Robot Schematics Acquired . | . . . Robots Built . | . . . Matter . | . . . Time . | . . . Total Robot Build Rating . | . . . Part Schematics Acquired . | . . . Parts Built . | . . . Matter . | . . . Time . | . . . Total Part Build Rating . | . . . Parts Repaired . | . . . Time . | . . . Parts Recycled . | . . . Recycled Matter . | . . . Retrieved Matter . | . . . Retrieved Components . | . . . Parts Scanalyzed . | . . . Part Schematics Acquired . | . . . Parts Damaged . | . . . Bothacking | -11 -10 -10 ------------ Run | Scr Mat Min Used RIF Installer . | . . . Robots Hacked . | . . . Non-combat . | . . . Combat . | . . . Robot Hacks Applied . | . . . Relay Couplers Released . | . . . Robots Rewired . | . . . Allies Hacked . | . . . Hacks Repelled . | . . . Allies | -11 -10 -10 -------- Run | Scr Mat Min Total Allies . | . . . Largest Group . | . . . Highest-Rated Group . | . . . Highest-Rated Ally . | . . . Total Orders . | . . . Ally Attacks . | . . . Total Damage . | . . . Kills . | . . . Allies Corrupted . | . . . Allies Melted . | . . . Intel | -11 -10 -10 ------- Run | Scr Mat Min Robot Analysis Total . | . . . Derelict Logs Recovered 1 | . . 1 Drone Launches . | . . . Drone Recoveries . | . . . Exploration | -11 -10 -10 ------------- Run | Scr Mat Min Turns Passed 904 | 64 560 280 Spaces Moved 450 | 38 256 156 Core 7 | 7 . . Treads 319 | . 163 156 Legs 124 | 31 93 . Wheels . | . . . Hover . | . . . Flight . | . . . Fastest Speed 50 | 50 120 160 Average Speed 158 | 129 161 160 Slowest Speed 260 | 250 200 260 Overloaded Moves . | . . . Propulsion Burnouts . | . . . Robots Hopped . | . . . Cave-ins Triggered . | . . . Exploration Rate (%) 36 | 3 45 60 Regions Visited 2 Branch Regions 1 Pre-discovered Areas 1 | . . 1 Known Exits Taken 1 | . 1 . Unknown Exits Taken 1 | 1 . . Scrap Searched 1 | . . 1 Spaces Dug . | . . . Terrain Destroyed . | . . . Melee . | . . . Projectile . | . . . AOE . | . . . Terrain Rammed . | . . . Walls Destroyed . | . . . Machines Disabled . | . . . Actions | -11 -10 -10 --------- Run | Scr Mat Min Total 548 | 49 329 170 Wait 18 | . 18 . Move 448 | 37 255 156 Hop . | . . . Pick Up 13 | 6 5 2 Fast Attach 10 | 6 4 . Attach 1 | . . 1 Detach 1 | . 1 . Swap 6 | . 6 . Drop 4 | . 4 . Fire 42 | . 35 7 Melee . | . . . Ram . | . . . Kick 1 | . 1 . Crush 4 | . . 4 Escape Stasis . | . . . Rewire . | . . . Trap . | . . . Miscellaneous . | . . . Route ------- -11/Scrapyard -10/Materials (discovered 3 exits: [*Mat] / *Min x2) -10/Mines (discovered 1 exit: [*Mat]) History --------- Turn | Location | Event 2 | -11/Scrapyard | Met Revision 17 19 | -11/Scrapyard | Discovered new exit (range 16) 65 | -11/Scrapyard | Entered Materials 330 | -10/Materials | Build established: Mutant 378 | -10/Materials | Identified exit to Mines 518 | -10/Materials | Discovered new exit (range 3) 625 | -10/Materials | Entered Mines 664 | -10/Mines | Discovered new exit (range 8) 735 | -10/Mines | Received a Rocket Launcher from a helpful Derelict 784 | -10/Mines | Learned location of Recycling (-8) 866 | -10/Mines | Assembled infested the area 871 | -10/Mines | Assisted by a Guerilla fighting off Assembled 885 | -10/Mines | Core integrity fell below 50% 903 | -10/Mines | Core integrity fell below 20% 905 | -10/Mines | Destroyed by as-82202 with Assembled Blade Last Messages --------------- 00874_ HV Slug penetrates as-34364. 00874_ as-34364 suffers critical hit (Destroy). 00874_ as-34364 destroyed. 00876_ HV Slug penetrates as-46365. 00876_ as-46365 knocked back. 00880_ HV Slug penetrates Earth. 00883_ K0-WN8(h) Flexi-carbon Leg severed. 00884_ as-69179 suffers critical hit (Destroy). 00884_ Acquired 10 matter. 00885_ The unstable cave ceiling collapses. 00886_ HV Slug penetrates as-01332. 00886_ as-01332 destroyed. 00886_ HV Slug penetrates Earth. 00887_ K0-WN8(h) destroyed. 00894_ Med. Laser destroyed. 00899_ Slammed into as-43708. 00900_ Heat Sink destroyed. 00901_ Slammed into as-43867. 00901_ Lgt. Treads destroyed. 00902_ Slammed into as-16607. Map ----- +----------------------------------------------------+ | | | | | | | | | | | ?????????????????????????????????????????????????? | | ?????????????????????????????????????????????????? | | ?????????????????????????????????????????????????? | | ?????????????????????????????????????????????????? | | ???????????????????????###???????????????????????? | | ??????????????????????? ???????????????????????? | | ??????????????????????? ???????????????????????? | | ??????????????? ??????# #??????????????????????? | | ????????????? % #?????# #??????????????????????? | | ?????????????? %#????## #???????###########???? | | ?????????????# = ???# ????????# #???? | | ?????????????? ???# ????????# ##### | | ??????????????? ???# #????????######## | | ???????????????# ???# ##??????????????# | | ???????????????# ??## #????????????#### # # | | ???????????##?## ??# #????????????# ##### | | ??????????## # =??# ############## ## #???? | | ?????????## =%#### ## #???? | | ????????## [ # #a= ################# #?### | | ????????# #%a #???????????????# ### | | ????????# #a@##???????????????# ## | | ????????# %!##aa#???##???????????# | | ????????# * %=% aaa#??# ##??????????### | | ????????# = #aa#?# #????????????# | | ????????#" % % ## a## #????????????## | | ????????##"% ## #??????????????# | | ?????????##""# %## ## ##??????????????# | | ????????? # ## ##???????????????## | | ????????#######;# #### ####?????????????????### | | ??????????????##?####??####?????????????????????## | | ???????????????????????????????????????????????## | | ?????????????????????????????????????????????### | | ?????????????????????????????????????????????# | | ????????????????????????????????????????????# | | ????????????????????????????????????????????# | | ????????????????????????????????????????????# | | ???????????????????????????????????????????## | | ??????????????????????????????????????????## | | ??????????????????????????????????????????# | | ??????????????????????????????????????????? | | ???????????????????????????????????????????# | | ???????????????????????????????????????????# # | | ???????????????????????????????????#### #### ###? | | ???????????????????????????????????? #### | | ???????????????????????????????????????????# | +----------------------------------------------------+ Best States ------------- Heat Dissipation 35 Energy Generation 10 Energy Capacity 250 Matter Stores 300 Matter Capacity 300 Sight Range 16 Robot Scan Range 14 Terrain Scan Density 10 Power Shielding 33 Evasion (%) 55 Recoil Reduction 2 Item Schematics ----------------- None Robot Schematics ------------------ None Fabricated ------------ Nothing Alien Tech Used ----------------- None Achievements -------------- None Challenges ------------ None Game ------ Seed SeismicFlyingMallet Manual? 0 Play Time 00:11:44 Cumulative 28.7 hours Start 2021.10.03 @ 19:48:05 End 2021.10.03 @ 19:59:24 Sessions 1 Manual Loads 0 Difficulty Rogue Special Mode None Game No. 86 Rogue 86 Adventurer 0 Explorer 0 Win Type - Total 0 Types 0/0/0/0/0/0/0/0/0 Lore% 29 Gallery% 35 Achievement% 24 Wizard Run 0 Options --------- ASCII 0 Keyboard 0 Movement Numpad Keybinds 0 Fullscreen 2 Font 18/TerminusBold Map View 76x50 Tactical HUD 1 Map Filters NONE Filters NONE Steam 1 RUN: 92225d29-bc55-4a56-a08c-667f35b98360